fUST/lending_fUST_20260112
["ID","MTS","AMOUNT","RATE_DAILY","PERIOD"]
[401374343,1768164638407,-300.0,0.00010407,2]
[401374346,1768164638417,-300.0,0.00010407,2]
[401374347,1768164638426,-300.0,0.00010407,2]
[401374350,1768164638436,-300.0,0.00010407,2]
[401374352,1768164638445,-300.0,0.00010407,2]
[401374354,1768164638454,-1709.12781697,0.00010407,2]
[401374368,1768164638580,-600.0,0.00010614,2]
[401374370,1768164638590,-420.0,0.0001122,2]
[401374372,1768164638600,-153.35,0.000113,2]
[401374374,1768164638610,-1200.0,0.00011447,2]
[401374376,1768164638619,-720.0,0.00011676,2]
[401374378,1768164638628,-377.21964417,0.00012202,2]
[401374380,1768164638637,-500.0,0.00012329,2]
[401374382,1768164638647,-324.61580875,0.00012329,2]
[401374384,1768164638656,-587.0,0.00012339,2]
[401374386,1768164638665,-864.0,0.00012843,2]
[401374388,1768164638674,-2820.5103435,0.00013014,2]
[401374390,1768164638683,-500.0,0.00013273,2]
[401374392,1768164638693,-823.0,0.00013571,2]
[401374394,1768164638702,-1000.0,0.00013699,2]
[401374396,1768164638711,-2462.932732,0.00013699,2]
[401374398,1768164638720,-500.0,0.00013699,2]
[401374400,1768164638729,-500.0,0.00013699,2]
[401374402,1768164638738,-1000.0,0.00013821,2]
[401374404,1768164638748,-1000.0,0.00014127,2]
[401374406,1768164638757,-434.76162379,0.00014202,2]
[401374408,1768164638767,-1000.0,0.00014247,2]
[401374410,1768164638777,-1000.0,0.00014247,2]
[401374412,1768164638786,-1500.0,0.00014368,2]
[401374414,1768164638798,-153.35,0.000144,2]
[401374416,1768164638808,-1500.0,0.00014795,2]
[401374418,1768164638821,-1500.0,0.00014795,2]
[401374420,1768164638829,-2000.0,0.00014916,2]
[401374422,1768164638839,-890.0,0.00014925,2]
[401374424,1768164638848,-1000.0,0.00015,2]
[401374426,1768164638858,-1500.0,0.00015342,2]
[401374428,1768164638867,-2000.0,0.00015342,2]
[401374430,1768164638877,-732.45700431,0.00015464,2]
[401374432,1768164638888,-1000.0,0.0001554,2]
[401374434,1768164638898,-244.0,0.0001554,2]
[401374436,1768164638908,-2500.0,0.0001589,2]
[401374438,1768164638917,-492.3036034,0.00016202,2]
[401374440,1768164638925,-3000.0,0.00016438,2]
[401374442,1768164638934,-171.46,0.00016715,2]
[401374443,1768164638944,-1961.92726002,0.00016986,2]
[401374446,1768164638955,-1000.0,0.00017094,2]
[401374447,1768164638965,-492.0,0.00017094,2]
[401374449,1768164638975,-153.35,0.000176,2]
[401374451,1768164638986,-500.0,0.00017973,2]
[401374454,1768164638997,-512.28699192,0.00017973,2]
[401374456,1768164639008,-758.0444665,0.00017973,2]
[401374458,1768164639019,-758.0444665,0.00017973,2]
[401374460,1768164639029,-502.6605814,0.00017973,2]
[401374462,1768164639038,-758.0444665,0.00017973,2]
[401374464,1768164639047,-758.0444665,0.00017973,2]
[401374466,1768164639057,-758.0444665,0.00017973,2]
[401374468,1768164639066,-758.0444665,0.00017973,2]
[401374470,1768164639076,-758.0444665,0.00017973,2]
[401374472,1768164639085,-758.0444665,0.00017973,2]
[401374474,1768164639095,-758.0444665,0.00017973,2]
[401374476,1768164639104,-758.0444665,0.00017973,2]
[401374478,1768164639113,-758.0444665,0.00017973,2]
[401374480,1768164639122,-758.0444665,0.00017973,2]
[401374482,1768164639131,-758.0444665,0.00017973,2]
[401374484,1768164639140,-758.0444665,0.00017973,2]
[401374486,1768164639150,-758.0444665,0.00017973,2]
[401374488,1768164639159,-758.0444665,0.00017973,2]
[401374490,1768164639168,-758.0444665,0.00017973,2]
[401374492,1768164639177,-758.0444665,0.00017973,2]
[401374494,1768164639186,-758.0444665,0.00017973,2]
[401374496,1768164639195,-758.0444665,0.00017973,2]
[401374498,1768164639204,-758.0444665,0.00017973,2]
[401374500,1768164639212,-758.0444665,0.00017973,2]
[401374502,1768164639222,-812.19049983,0.00017973,2]
[401374504,1768164639231,-812.19049983,0.00017973,2]
[401374506,1768164639240,-812.19049983,0.00017973,2]
[401374508,1768164639249,-812.19049983,0.00017973,2]
[401374510,1768164639258,-812.19049983,0.00017973,2]
[401374512,1768164639267,-812.19049983,0.00017973,2]
[401374514,1768164639276,-549.84558302,0.00018202,2]
[401374516,1768164639286,-1000.0,0.00018804,2]
[401374518,1768164639295,-791.0,0.00018804,2]
[401374520,1768164639304,-303.10001603,0.000189,2]
[401374522,1768164639313,-303.10001606,0.00019089,2]
[401374524,1768164639321,-242.62689371,0.00019178,2]
[401374526,1768164639330,-167.64,0.000192,2]
[401374528,1768164639340,-356.60047411,0.00019626,2]
[401374530,1768164639349,-164.08,0.000197,2]
[401374532,1768164639358,-162.99,0.000197,2]
[401374534,1768164639367,-1041.66666667,0.00019955,2]
[401374536,1768164639376,-151.55000802,0.0002,2]
[401374538,1768164639386,-607.38756264,0.00020202,2]
[401374540,1768164639395,-2462.932732,0.00020548,2]
[401374542,1768164639404,-1000.0,0.00020684,2]
[401374544,1768164639413,-1000.0,0.00020684,2]
[401374545,1768164639421,-153.35,0.000207,2]
[401374547,1768164639430,-841.2,0.00021122,2]
[401374549,1768164639439,-2475.71832352,0.0002131,2]
[401374551,1768164639448,-2475.71832352,0.00021537,2]
[401374553,1768164639458,-282.0,0.00021571,2]
[401374555,1768164639467,-356.0,0.00021812,2]
[401374558,1768164639478,-2475.71832352,0.00021866,2]
[401374559,1768164639487,-424.0,0.00021989,2]
[401374561,1768164639497,-558.0,0.0002199,3]
[401374563,1768164639506,-373.41,0.0002199,10]
[401374565,1768164639515,-311.17,0.0002199,10]
[401374568,1768164639525,-5000.0,0.00021998,2]
[401374570,1768164639535,-10000.0,0.00022,2]
[401374572,1768164639544,-10000.0,0.00022,2]
[401374573,1768164639553,-10000.0,0.00022,2]
[401374576,1768164639563,-10000.0,0.00022,2]
[401374578,1768164639572,-10000.0,0.00022,2]
[401374579,1768164639581,-10000.0,0.00022,2]
[401374581,1768164639591,-10000.0,0.00022,2]
[401374583,1768164639601,-1048.85,0.00022,2]
[401374585,1768164639610,-9009.0,0.00022,2]
[401374587,1768164639620,-3359.23,0.00022,14]
[401374589,1768164639630,-2475.71832352,0.00022127,2]
[401374591,1768164639639,-664.92954226,0.00022202,2]
[401374593,1768164639647,-841.2,0.00022352,2]
[401374595,1768164639657,-2475.71832352,0.00022413,2]
[401374597,1768164639666,-300.0,0.00022466,2]
[401374599,1768164639674,-1852.32423084,0.00022502,2]
[401374601,1768164639684,-2475.71832352,0.0002271,2]
[401374603,1768164639693,-1000.0,0.00022752,10]
[401374605,1768164639702,-1000.0,0.00022752,10]
[401374607,1768164639711,-579.0,0.00022752,10]
[401374609,1768164639721,-2475.71832352,0.00022807,2]
[401374611,1768164639730,-151.0,0.000229,9]
[401374613,1768164639739,-151.0,0.000229,6]
[401374615,1768164639748,-100000.0,0.0002299,2]
[401374617,1768164639757,-450.0,0.00023014,2]
[401374619,1768164639766,-2475.71832352,0.0002308,2]
[401374621,1768164639775,-151.0,0.000231,8]
[401374623,1768164639784,-1424.97549453,0.00023226,2]
[401374625,1768164639794,-431.088,0.00023289,3]
[401374627,1768164639803,-178.052,0.00023289,3]
[401374629,1768164639817,-151.0,0.000233,6]
[401374631,1768164639826,-2475.71832352,0.00023348,2]
[401374633,1768164639836,-151.0,0.000234,8]
[401374635,1768164639845,-151.0,0.00023418,2]
[401374637,1768164639855,-156.587,0.00023418,2]
[401374639,1768164639865,-152.09143049,0.00023418,2]
[401374641,1768164639874,-151.0,0.00023418,2]
[401374643,1768164639885,-151.0,0.00023418,2]
[401374645,1768164639895,-151.0,0.00023418,2]
[401374647,1768164639903,-151.0,0.00023418,2]
[401374649,1768164639912,-151.0,0.00023418,2]
[401374651,1768164639922,-151.0,0.00023418,2]
[401374653,1768164639932,-151.0,0.00023418,2]
[401374655,1768164639941,-151.0,0.00023418,2]
[401374657,1768164639951,-151.0,0.00023418,2]
[401374659,1768164639960,-151.0,0.00023418,2]
[401374661,1768164639969,-151.0,0.00023418,2]
[401374663,1768164639978,-151.0,0.00023418,2]
[401374665,1768164639987,-151.0,0.00023418,2]
[401374667,1768164639997,-151.0,0.00023418,2]
[401374669,1768164640006,-151.0,0.00023418,2]
[401374672,1768164640015,-151.0,0.00023418,2]
[401374675,1768164640025,-151.0,0.00023418,2]
[401374677,1768164640035,-151.0,0.00023418,2]
[401374678,1768164640045,-151.0,0.00023418,2]
[401374680,1768164640054,-151.0,0.00023418,2]
[401374683,1768164640064,-151.0,0.00023418,2]
[401374684,1768164640075,-151.0,0.00023418,2]
[401374686,1768164640085,-151.0,0.00023418,2]
[401374689,1768164640095,-151.0,0.00023418,2]
[401374691,1768164640104,-151.0,0.00023418,2]
[401374693,1768164640114,-151.0,0.00023418,2]
[401374695,1768164640124,-151.0,0.00023418,2]
[401374697,1768164640133,-151.0,0.00023418,2]
[401374699,1768164640142,-151.0,0.00023418,2]
[401374701,1768164640151,-151.0,0.00023418,2]
[401374703,1768164640160,-151.0,0.00023418,2]
[401374704,1768164640170,-151.0,0.00023418,2]
[401374706,1768164640179,-151.0,0.00023418,2]
[401374707,1768164640189,-151.0,0.00023418,2]
[401374708,1768164640198,-151.0,0.00023418,2]
[401374709,1768164640208,-2030.29667201,0.00023418,2]
[401374710,1768164640217,-151.0,0.00023418,2]
[401374711,1768164640227,-151.0,0.00023418,2]
[401374713,1768164640236,-30000.0,0.00023418,2]
[401374714,1768164640245,-151.0,0.00023418,2]
[401374715,1768164640254,-151.0,0.00023418,2]
[401374716,1768164640264,-151.0,0.00023418,2]
[401374717,1768164640273,-151.0,0.000235,5]
[401374718,1768164640282,-3359.23,0.000235,14]
[401374719,1768164640291,-151.0,0.000235,5]
[401374720,1768164640301,-600.0,0.00023562,2]
[401374721,1768164640311,-155.57399191,0.00023582,5]
[401374722,1768164640320,-157.11492553,0.00023582,5]
[401374723,1768164640330,-841.2,0.00023582,2]
[401374724,1768164640341,-3323.78011202,0.00023686,6]
[401374725,1768164640351,-5908.94242138,0.00023686,6]
[401374726,1768164640360,-9223.48981087,0.00023686,6]
[401374727,1768164640370,-7129.86715371,0.00023686,6]
[401374728,1768164640380,-151.0,0.000237,7]
[401374729,1768164640390,-151.0,0.000237,7]
[401374730,1768164640399,-2475.71832352,0.00023822,2]
[401374731,1768164640409,-500.0,0.00023837,2]
[401374732,1768164640418,-153.96461209,0.00023837,2]
[401374733,1768164640427,-151.71242224,0.00023837,2]
[401374734,1768164640436,-3650.0,0.00023837,2]
[401374735,1768164640446,-151.54915065,0.00023837,2]
[401374736,1768164640455,-200.0,0.00023837,2]
[401374737,1768164640464,-500.0,0.00023837,2]
[401374738,1768164640474,-500.0,0.00023837,2]
[401374739,1768164640483,-500.0,0.00023837,2]
[401374740,1768164640492,-250.0,0.00023837,2]
[401374741,1768164640502,-500.0,0.00023837,2]
[401374742,1768164640511,-500.0,0.00023837,2]
[401374743,1768164640521,-500.0,0.00023837,2]
[401374744,1768164640530,-210.56827625,0.00023837,2]
[401374745,1768164640539,-500.0,0.00023837,2]
[401374746,1768164640548,-170.20314176,0.00023837,2]
[401374747,1768164640557,-276.55594314,0.00023837,2]
[401374748,1768164640566,-2608.13543554,0.00023882,2]
[401374749,1768164640576,-151.0,0.000239,8]
[401374750,1768164640585,-153.35,0.000239,2]
[401374751,1768164640595,-2475.71832358,0.00023904,2]
[401374752,1768164640604,-31110.0,0.00023966,2]
[401374753,1768164640613,-500.0,0.00023974,2]
[401374754,1768164640623,-3650.0,0.00023974,2]
[401374755,1768164640632,-500.0,0.00023974,2]
[401374756,1768164640641,-500.0,0.00023974,2]
[401374757,1768164640651,-601.55233838,0.00023974,2]
[401374758,1768164640660,-500.0,0.00023974,2]
[401374759,1768164640669,-500.0,0.00023974,2]
[401374760,1768164640678,-500.0,0.00023974,2]
[401374761,1768164640687,-500.0,0.00023974,2]
[401374762,1768164640697,-496.47127164,0.00023982,5]
[401374763,1768164640706,-514.84070869,0.00023982,5]
[401374764,1768164640716,-533.88981491,0.00023982,5]
[401374765,1768164640726,-553.64373807,0.00023982,5]
[401374766,1768164640735,-574.12855637,0.00023982,5]
[401374767,1768164640744,-595.37131296,0.00023982,5]
[401374768,1768164640753,-617.40005154,0.00023982,5]
[401374769,1768164640762,-640.24385345,0.00023982,5]
[401374770,1768164640771,-663.93287602,0.00023982,5]
[401374771,1768164640781,-688.49839244,0.00023982,5]
[401374772,1768164640790,-713.97283296,0.00023982,5]
[401374773,1768164640799,-740.38982778,0.00023982,5]
[401374774,1768164640809,-767.7842514,0.00023982,5]
[401374775,1768164640819,-796.19226871,0.00023982,5]
[401374776,1768164640829,-825.65138265,0.00023982,5]
[401374777,1768164640838,-311.85701,0.00023982,5]
[401374778,1768164640847,-151.0,0.00023982,5]
[401374779,1768164640857,-323.39571937,0.00023982,5]
[401374780,1768164640866,-151.0,0.00023982,5]
[401374781,1768164640875,-335.36136099,0.00023982,5]
[401374783,1768164640887,-250.0,0.00023982,5]
[401374785,1768164640896,-151.0,0.00023982,5]
[401374787,1768164640905,-500.0,0.00023982,5]
[401374789,1768164640915,-250.0,0.00023982,5]
[401374790,1768164640924,-347.76973134,0.00023982,5]
[401374792,1768164640934,-151.0,0.00023982,5]
[401374793,1768164640944,-500.0,0.00023982,5]
[401374794,1768164640953,-250.0,0.00023982,5]
[401374795,1768164640963,-411.22228025,0.00023982,5]
[401374796,1768164640973,-500.0,0.00023982,5]
[401374797,1768164640982,-151.0,0.00023982,5]
[401374798,1768164640991,-250.0,0.00023982,5]
[401374799,1768164641000,-500.0,0.00023982,5]
[401374800,1768164641010,-151.0,0.00023982,5]
[401374801,1768164641019,-250.0,0.00023982,5]
[401374802,1768164641028,-250.0,0.00023982,5]
[401374803,1768164641037,-500.0,0.00023982,5]
[401374804,1768164641046,-151.0,0.00023982,5]
[401374805,1768164641146,-250.0,0.00023982,5]
[401374806,1768164641155,-250.0,0.00023982,5]
[401374807,1768164641165,-500.0,0.00023982,5]
[401374808,1768164641173,-151.0,0.00023982,5]
[401374809,1768164641183,-250.0,0.00023982,5]
[401374810,1768164641192,-250.0,0.00023982,5]
[401374811,1768164641201,-500.0,0.00023982,5]
[401374812,1768164641210,-151.0,0.00023982,5]
[401374813,1768164641220,-250.0,0.00023982,5]
[401374814,1768164641229,-250.0,0.00023982,5]
[401374815,1768164641238,-250.0,0.00023982,5]
[401374816,1768164641248,-500.0,0.00023982,5]
[401374817,1768164641257,-151.0,0.00023982,5]
[401374818,1768164641267,-250.0,0.00023982,5]
[401374819,1768164641276,-250.0,0.00023982,5]
[401374820,1768164641285,-250.0,0.00023982,5]
[401374821,1768164641295,-500.0,0.00023982,5]
[401374822,1768164641305,-151.0,0.00023982,5]
[401374823,1768164641314,-291.2784889,0.00023982,5]
[401374824,1768164641323,-250.0,0.00023982,5]
[401374825,1768164641333,-265.04542702,0.00023982,5]
[401374826,1768164641342,-500.0,0.00023982,5]
[401374827,1768164641351,-151.0,0.00023982,5]
[401374828,1768164641360,-151.0,0.00023982,5]
[401374829,1768164641370,-250.0,0.00023982,5]
[401374830,1768164641380,-500.0,0.00023982,5]
[401374831,1768164641389,-151.0,0.00023982,5]
[401374832,1768164641398,-151.0,0.00023982,5]
[401374833,1768164641407,-252.94566259,0.00023982,5]
[401374834,1768164641416,-500.0,0.00023982,5]
[401374835,1768164641426,-152.53645226,0.00023982,5]
[401374836,1768164641435,-151.0,0.00023982,5]
[401374837,1768164641444,-500.0,0.00023982,5]
[401374838,1768164641453,-151.0,0.00023982,5]
[401374839,1768164641463,-500.0,0.00023982,5]
[401374840,1768164641471,-151.0,0.00023982,5]
[401374841,1768164641480,-500.0,0.00023982,5]
[401374843,1768164641490,-151.0,0.00023982,5]
[401374844,1768164641499,-151.0,0.00023982,5]
[401374846,1768164641508,-151.0,0.00023982,5]
[401374848,1768164641517,-151.0,0.00023982,5]
[401374850,1768164641526,-151.0,0.00023982,5]
[401374852,1768164641535,-151.0,0.00023982,5]
[401374854,1768164641544,-250.0,0.00023982,5]
[401374856,1768164641553,-151.0,0.00023982,5]
[401374858,1768164641562,-250.0,0.00023982,5]
[401374860,1768164641571,-151.0,0.00023982,5]
[401374862,1768164641580,-250.0,0.00023982,5]
[401374864,1768164641591,-151.0,0.00023982,5]
[401374866,1768164641600,-250.0,0.00023982,5]
[401374868,1768164641609,-151.0,0.00023982,5]
[401374870,1768164641618,-250.0,0.00023982,5]
[401374872,1768164641627,-151.0,0.00023982,5]
[401374874,1768164641636,-250.0,0.00023982,5]
[401374876,1768164641645,-296.59935167,0.00023982,5]
[401374878,1768164641654,-250.0,0.00023982,5]
[401374880,1768164641663,-2398.4119403,0.00023982,5]
[401374882,1768164641672,-250.0,0.00023982,5]
[401374884,1768164641681,-2487.15318209,0.00023982,5]
[401374886,1768164641691,-250.0,0.00023982,5]
[401374888,1768164641699,-2579.17784983,0.00023982,5]
[401374890,1768164641709,-250.0,0.00023982,5]
[401374892,1768164641718,-2674.60743027,0.00023982,5]
[401374894,1768164641727,-250.0,0.00023982,5]
[401374896,1768164641736,-2773.56790519,0.00023982,5]
[401374898,1768164641745,-250.0,0.00023982,5]
[401374900,1768164641754,-2876.18991768,0.00023982,5]
[401374902,1768164641763,-250.0,0.00023982,5]
[401374904,1768164641772,-2982.60894464,0.00023982,5]
[401374906,1768164641781,-250.0,0.00023982,5]
[401374908,1768164641790,-3092.96547559,0.00023982,5]
[401374910,1768164641799,-250.0,0.00023982,5]
[401374912,1768164641808,-3207.40519818,0.00023982,5]
[401374914,1768164641821,-151.0,0.00023982,5]
[401374916,1768164641830,-3326.07919052,0.00023982,5]
[401374918,1768164641840,-3449.14412057,0.00023982,5]
[401374920,1768164641849,-151.0,0.00023982,5]
[401374922,1768164641861,-3576.76245303,0.00023982,5]
[401374924,1768164641870,-151.0,0.00023982,5]
[401374926,1768164641879,-3709.10266379,0.00023982,5]
[401374928,1768164641891,-151.0,0.00023982,5]
[401374930,1768164641900,-3846.33946235,0.00023982,5]
[401374932,1768164641909,-151.0,0.00023982,5]
[401374934,1768164641919,-3988.65402246,0.00023982,5]
[401374936,1768164641929,-151.0,0.00023982,5]
[401374938,1768164641939,-151.0,0.00023982,5]
[401374940,1768164641949,-241.8234162,0.00023982,5]
[401374943,1768164641959,-151.0,0.00024,5]
[401374945,1768164641968,-32701.7,0.00024,2]
[401374946,1768164641977,-3807.5457417,0.0002404,2]
[401374948,1768164641986,-92361.7675478,0.0002404,2]
[401374951,1768164641996,-2995.1916051,0.0002404,2]
[401374953,1768164642005,-282.0,0.00024082,12]
[401374955,1768164642015,-164.08,0.000241,7]
[401374957,1768164642023,-162.99,0.000241,7]
[401374959,1768164642032,-750.0,0.0002411,2]
[401374960,1768164642041,-500.0,0.00024111,2]
[401374962,1768164642050,-299.999999,0.00024111,2]
[401374964,1768164642059,-3650.0,0.00024111,2]
[401374967,1768164642068,-500.0,0.00024111,2]
[401374969,1768164642077,-500.0,0.00024111,2]
[401374970,1768164642087,-500.0,0.00024111,2]
[401374972,1768164642095,-625.58637142,0.00024111,2]
[401374973,1768164642104,-500.0,0.00024111,2]
[401374974,1768164642113,-150.69939601,0.00024111,2]
[401374975,1768164642122,-248617.41571684,0.00024142,2]
[401374976,1768164642137,-517.42876019,0.00024142,2]
[401374977,1768164642148,-356.01301693,0.00024142,2]
[401374978,1768164642265,-10523.88546093,0.00024142,2]
[401374987,1768164645514,-496.47127164,0.00023982,5]
[401374988,1768164645524,-514.84070869,0.00023982,5]
[401374989,1768164645534,-3170.68801967,0.00024142,2]
[401374995,1768164646274,-259.31,0.00024132,10]
[401374996,1768164646284,-2006.6125486,0.00024142,2]
[401374997,1768164646295,-304.64426115,0.00024142,2]
[401374998,1768164646330,-73603.92078064,0.00024142,2]
[401374999,1768164646340,-10513.73563327,0.00024142,2]
[401375000,1768164646349,-5559.40693182,0.00024142,2]
[401375001,1768164646359,-4737.37980225,0.00024142,2]
[401375002,1768164646368,-3166.05645288,0.00024142,2]
[401375003,1768164646378,-780.58249036,0.00024142,2]
[401375004,1768164646387,-8244.17503351,0.00024142,2]
[401375006,1768164646396,-675.51407901,0.00024142,2]
[401375008,1768164646406,-151.0,0.00024142,2]
[401375009,1768164646415,-151.0,0.00024142,2]
[401375010,1768164646426,-151.0,0.00024142,2]
[401375011,1768164646435,-151.0,0.00024142,2]
[401375012,1768164646445,-151.0,0.00024142,2]
[401375013,1768164646455,-151.0,0.00024142,2]
[401375014,1768164646466,-151.0,0.00024142,2]
[401375015,1768164646476,-151.0,0.00024142,2]
[401375016,1768164646486,-151.0,0.00024142,2]
[401375017,1768164646495,-151.0,0.00024142,2]
[401375018,1768164646504,-151.0,0.00024142,2]
[401375019,1768164646514,-151.0,0.00024142,2]
[401375020,1768164646522,-151.0,0.00024142,2]
[401375021,1768164646531,-151.0,0.00024142,2]
[401375022,1768164646540,-151.0,0.00024142,2]
[401375023,1768164646549,-161.096358,0.00024142,2]
[401375024,1768164646559,-151.0,0.00024142,2]
[401375025,1768164646567,-151.0,0.00024142,2]
[401375026,1768164646576,-466.694893,0.00024142,2]
[401375027,1768164646585,-466.694893,0.00024142,2]
[401375028,1768164646595,-466.694893,0.00024142,2]
[401375029,1768164646604,-466.694893,0.00024142,2]
[401375030,1768164646613,-151.0,0.00024142,2]
[401375031,1768164646622,-151.0,0.00024142,2]
[401375032,1768164646631,-162.23959,0.00024142,2]
[401375033,1768164646639,-151.0,0.00024142,2]
[401375034,1768164646648,-629.317095,0.00024142,2]
[401375035,1768164646657,-629.317095,0.00024142,2]
[401375036,1768164646666,-629.317095,0.00024142,2]
[401375037,1768164646675,-629.317095,0.00024142,2]
[401375038,1768164646684,-286.469083,0.00024142,2]
[401375039,1768164646693,-160.204884,0.00024142,2]
[401375040,1768164646702,-151.0,0.00024142,2]
[401375041,1768164646711,-151.0,0.00024142,2]
[401375042,1768164646720,-248.949419,0.00024142,2]
[401375043,1768164646730,-163.313773,0.00024142,2]
[401375044,1768164646739,-248.949419,0.00024142,2]
[401375045,1768164646747,-167.435981,0.00024142,2]
[401375046,1768164646757,-248.949419,0.00024142,2]
[401375047,1768164646766,-248.949419,0.00024142,2]
[401375048,1768164646775,-499.381508,0.00024142,2]
[401375049,1768164646784,-499.381508,0.00024142,2]
[401375050,1768164646794,-499.381508,0.00024142,2]
[401375051,1768164646803,-499.381508,0.00024142,2]
[401375052,1768164646814,-209.833157,0.00024142,2]
[401375053,1768164646823,-3685.53057,0.00024142,2]
[401375054,1768164646833,-3685.53057,0.00024142,2]
[401375055,1768164646845,-3685.53057,0.00024142,2]
[401375056,1768164646855,-3685.53057,0.00024142,2]
[401375057,1768164646864,-221.941164,0.00024142,2]
[401375058,1768164646962,-221.941164,0.00024142,2]
[401375059,1768164646972,-221.941164,0.00024142,2]
[401375060,1768164646981,-221.941164,0.00024142,2]
[401375061,1768164646990,-346.794,0.00024142,2]
[401375062,1768164646999,-346.794,0.00024142,2]
[401375063,1768164647008,-346.794,0.00024142,2]
[401375064,1768164647017,-346.794,0.00024142,2]
[401375065,1768164647026,-151.0,0.00024142,2]
[401375066,1768164647036,-151.0,0.00024142,2]
[401375067,1768164647045,-200.586455,0.00024142,2]
[401375068,1768164647055,-156.82101,0.00024142,2]
[401375069,1768164647064,-151.0,0.00024142,2]
[401375070,1768164647073,-151.0,0.00024142,2]
[401375071,1768164647082,-151.0,0.00024142,2]
[401375072,1768164647092,-151.0,0.00024142,2]
[401375073,1768164647101,-151.0,0.00024142,2]
[401375074,1768164647110,-151.0,0.00024142,2]
[401375075,1768164647119,-151.0,0.00024142,2]
[401375076,1768164647128,-151.0,0.00024142,2]
[401375077,1768164647137,-151.0,0.00024142,2]
[401375078,1768164647150,-151.0,0.00024142,2]
[401375079,1768164647159,-151.0,0.00024142,2]
[401375080,1768164647168,-151.0,0.00024142,2]
[401375081,1768164647178,-151.000056,0.00024142,2]
[401375082,1768164647187,-1469.964618,0.00024142,2]
[401375083,1768164647196,-1469.964618,0.00024142,2]
[401375084,1768164647205,-151.0,0.00024142,2]
[401375085,1768164647216,-1638.845663,0.00024142,2]
[401375086,1768164647225,-1469.964618,0.00024142,2]
[401375087,1768164647235,-151.0,0.00024142,2]
[401375088,1768164647243,-1638.845663,0.00024142,2]
[401375089,1768164647253,-1469.964618,0.00024142,2]
[401375090,1768164647262,-1638.845663,0.00024142,2]
[401375091,1768164647272,-1638.845663,0.00024142,2]
[401375092,1768164647282,-239.620179,0.00024142,2]
[401375093,1768164647292,-165.523557,0.00024142,2]
[401375094,1768164647302,-165.523557,0.00024142,2]
[401375095,1768164647315,-165.523557,0.00024142,2]
[401375096,1768164647337,-151.0,0.00024142,2]
[401375097,1768164647358,-2702.05631603,0.00024142,2]
[401375098,1768164647378,-151.0,0.00024142,2]
[401375099,1768164647401,-165.523557,0.00024142,2]
[401375100,1768164647424,-728.329358,0.00024142,2]
[401375101,1768164647447,-151.0,0.00024142,2]
[401375102,1768164647469,-151.61039102,0.00024142,2]
[401375103,1768164647491,-728.329358,0.00024142,2]
[401375104,1768164647512,-728.329358,0.00024142,2]
[401375105,1768164647523,-151.0,0.00024142,2]
[401375106,1768164647533,-728.329358,0.00024142,2]
[401375107,1768164647543,-184.41981498,0.00024142,2]
[401375108,1768164647554,-736.94158064,0.00024142,2]
[401375109,1768164647563,-171.46,0.00024185,2]
[401375110,1768164647572,-2120.0,0.00024198,2]
[401375111,1768164647586,-64485.18071854,0.00024198,2]
[401375112,1768164647697,-3769.4475725,0.00024198,2]
[401375113,1768165204302,153.35,5e-05,2]
[401375118,1768165624433,713.0,0.00030137,120]
[401375169,1768165838471,-560.0,0.00010004,2]
[401375170,1768165838482,-45802.58225055,0.00010004,2]